[Event "SixDays GM March 2024"]
[Site "Budapest"]
[Date "2024.04.02"]
[Round "6.3"]
[White "Mihok, Oliver"]
[Black "Mayank Chakraborty"]
[Result "1/2-1/2"]
[ECO "C26"]
[WhiteElo "2549"]
[BlackElo "2386"]
[Annotator "RC"]
[PlyCount "134"]
[EventDate "2024.03.26"]
[EventType "tourn"]
[EventCountry "HUN"]
[SourceTitle "playchess.com"]
[Source "ChessBase"]
[SourceQuality "1"]
[TimeControl "5400+30"]

1. e4 {[%emt 0:03:43]} e5 {[%emt 0:00:01]} 2. Nc3 {[%emt 0:00:07]} Nf6 {[%emt 0:00:11]} 3. Bc4 {[%emt 0:00:06]} Bc5 {[%emt 0:02:11]} 4. d3 {[%emt 0:00:00]} d6 5. f4 exf4 {[%emt 0:08:39]} 6. Bxf4 {[%emt 0:04:26]} Be6 {[%emt 0:00:30]} 7. Bb3 {[%emt 0:07:26]} Nc6 {[%emt 0:04:37]} 8. Nf3 {[%emt 0:04:17]} Nd4 {[%emt 0:09:02]} 9. Na4 {[%emt 0:11:24]} Bxb3 {[%emt 0:06:58]} 10. axb3 {[%emt 0:00:53]} Ne6 {[%emt 0:00:49]} 11. Bd2 {[%emt 0:04:25]} a6 {[%emt 0:06:35]} 12. Nxc5 {[%emt 0:00:20]} dxc5 {[%emt 0:00:02]} 13. O-O {[%emt 0:01:53]} Nd7 {[%emt 0:01:00]} 14. Qe1 {[%emt 0:03:43]} O-O {[%emt 0:01:51]} 15. Qg3 {[%emt 0:02:39]} f6 {[%emt 0:07:11]} 16. Rf2 {[%emt 0:02:42]} Rf7 {[%emt 0:04:17]} 17. Raf1 {[%emt 0:03:40]} Nd4 {[%emt 0:04:57]} 18. Bc3 {[%emt 0:03:56]} Nxf3+ {[%emt 0:04:01]} 19. Rxf3 {[%emt 0:00:07]} Qe7 {[%emt 0:10:04]} 20. Qxc7 {[%emt 0:04:19]} Ne5 {[%emt 0:00:01]} 21. Bxe5 {[%emt 0:00:20]} Qxc7 {[%emt 0:00:01]} 22. Bxc7 {[%emt 0:00:10]} Rxc7 {[%emt 0:00:02]} 23. Rf5 {[%emt 0:00:37]} a5 {[%emt 0:04:11]} 24. e5 {[%emt 0:06:41]} fxe5 {[%emt 0:00:10]} 25. Rxe5 {[%emt 0:00:04]} b6 {[%emt 0:04:31]} 26. Rf4 {[%emt 0:04:36]} h6 {[%emt 0:02:14]} 27. Re6 {[%emt 0:00:46]} Rb7 {[%emt 0:01:14]} 28. Kf2 {[%emt 0:02:44]} b5 {[%emt 0:02:51]} 29. Rc6 {[%emt 0:01:58]} a4 {[%emt 0:00:44]} 30. Rxc5 {[%emt 0:01:07]} axb3 {[%emt 0:00:05]} 31. cxb3 {[%emt 0:00:06]} Ra2 {[%emt 0:02:01]} 32. Rc2 {[%emt 0:00:29]} b4 {[%emt 0:01:43]} 33. Ke3 {[%emt 0:01:42]} Ra1 {[%emt 0:01:36]} 34. h4 {[%emt 0:01:04]} Re1+ {[%emt 0:01:16]} 35. Re2 {[%emt 0:01:10]} Rd1 {[%emt 0:01:28]} 36. Rd2 {[%emt 0:00:21]} Re1+ {[%emt 0:00:22]} 37. Kf2 {[%emt 0:00:07]} Re5 {[%emt 0:00:53]} 38. d4 {[%emt 0:01:06]} Rd5 {[%emt 0:00:13]} 39. Re4 {[%emt 0:00:54]} Kf7 {[%emt 0:00:19]} 40. Ke3 {[%emt 0:00:20]} Kg6 {[%emt 0:01:03]} 41. g4 {[%emt 0:02:03]} h5 {[%emt 0:00:23]} 42. g5 {[%emt 0:00:50]} Rc7 {[%emt 0:00:28]} 43. Rf2 {[%emt 0:02:30]} Rd6 {[%emt 0:01:15]} 44. Re5 {[%emt 0:01:34]} Rc1 {[%emt 0:00:56]} 45. d5 {[%emt 0:00:13]} Rd8 {[%emt 0:00:43]} 46. Rd2 {[%emt 0:03:27]} Rh1 {[%emt 0:01:11]} 47. Re4 {[%emt 0:04:56]} Kf5 {[%emt 0:02:26]} 48. Rf2+ {[%emt 0:00:32]} Kg6 {[%emt 0:00:02]} 49. Rd4 {[%emt 0:01:44]} Rh3+ {[%emt 0:03:06]} 50. Rf3 {[%emt 0:05:20]} Re8+ {[%emt 0:00:12]} 51. Re4 {[%emt 0:01:28]} Rxe4+ {[%emt 0:00:01]} 52. Kxe4 {[%emt 0:00:03]} Rxh4+ {[%emt 0:00:06]} 53. Ke5 {[%emt 0:00:15]} Rh1 {[%emt 0:00:44]} 54. d6 {[%emt 0:01:39]} Re1+ {[%emt 0:02:00]} 55. Kd5 {[%emt 0:00:06]} Rd1+ {[%emt 0:00:17]} 56. Kc6 {[%emt 0:01:23]} Kxg5 {[%emt 0:00:24]} 57. d7 {[%emt 0:00:40]} Rc1+ {[%emt 0:02:19]} 58. Rc3 {[%emt 0:00:22]} Rd1 {[%emt 0:00:52]} 59. Rc5+ {[%emt 0:00:36]} Kf6 {[%emt 0:00:07]} 60. Kc7 {[%emt 0:01:37]} g5 {[%emt 0:00:22]} 61. d8=Q+ {[%emt 0:00:29]} Rxd8 {[%emt 0:00:01]} 62. Kxd8 {[%emt 0:00:06]} h4 {[%emt 0:00:09]} 63. Kd7 {[%emt 0:01:08]} h3 {[%emt 0:00:33]} 64. Rc6+ {[%emt 0:00:46]} Kg7 {[%emt 0:00:59]} 65. Rc2 {[%emt 0:00:26]} Kf6 {[%emt 0:00:40]} 66. Rc6+ {[%emt 0:01:11]} Kg7 {[%emt 0:00:09]} 67. Rc2 {[%emt 0:00:51]} Kf6 {[%emt 0:00:14]} 1/2-1/2

[Event "SixDays GM March 2024"]
[Site "Budapest"]
[Date "2024.04.02"]
[Round "6.4"]
[White "Grover, Sahaj"]
[Black "Uskov, Artem"]
[Result "0-1"]
[ECO "B47"]
[WhiteElo "2514"]
[BlackElo "2392"]
[Annotator "TA"]
[PlyCount "120"]
[EventDate "2024.03.26"]
[EventType "tourn"]
[EventCountry "HUN"]
[SourceTitle "playchess.com"]
[Source "ChessBase"]
[SourceQuality "1"]
[TimeControl "5400+30"]

{[%evp 14,120,24,18,39,8,12,0,0,0,-11,-10,-8,-22,12,24,12,0,7,-75,-66,-66,-72,-114,-106,-104,-99,-132,-120,-129,-122,-136,-137,-151,-151,-145,-144,-151,-146,-147,-147,-111,0,-147,0,-149,-142,-115,-127,-147,-144,-145,-116,-120,-116,-118,-129,-131,-102,-91,0,-97,-62,-62,-15,-25,0,-66,-66,-68,-68,-68,-17,-31,-27,-204,-197,-205,-214,-206,-201,-162,-162,-315,-155,-155,-147,-236,-226,-294,-294,-522,-493,-1135,-1071,-1057,-998,-29973,-29974,-29978,-29979,-29979,-29980,-29980,-29981,-29981,-29981,-29988,-29989]} 1. e4 {[%emt 0:13:56]} c5 {[%emt 0:00:07]} 2. Nf3 {[%emt 0:00:10]} e6 {[%emt 0:00:05]} 3. d4 {[%emt 0:00:04]} cxd4 {[%emt 0:00:06]} 4. Nxd4 {[%emt 0:00:04]} Nc6 {[%emt 0:00:08]} 5. Nc3 {[%emt 0:00:12]} Qc7 {[%emt 0:00:08]} 6. a3 {[%emt 0:00:25]} a6 {[%emt 0:00:10]} 7. Be3 {[%emt 0:00:12]} b5 {[%emt 0:01:14]} 8. Nxc6 {[%emt 0:00:32]} Qxc6 {[%emt 0:00:47]} 9. h4 {[%emt 0:00:28]} Nf6 {[%emt 0:01:04]} 10. h5 {[%emt 0:03:05]} Nxe4 {[%emt 0:02:16] The position is equal.} 11. Nxe4 {[%emt 0:00:06]} Qxe4 {[%emt 0:00:07]} 12. Be2 {[%emt 0:00:32]} Rb8 {[%emt 0:04:33][%cal Oc8b7]} 13. h6 {[%emt 0:10:53]} gxh6 {[%emt 0:14:50]} 14. Bf3 {[%emt 0:27:28]} Qe5 {[%emt 0:01:12][%cal Of8c5]} 15. Rh5 {[%emt 0:05:48]} f5 {[%emt 0:05:52]} 16. Qd4 {[%emt 0:00:33] Inhibits Bc5.} (16. Qd2 $11 {keeps the balance.} b4 17. Kf1) 16... Qxd4 $17 {[%emt 0:01:13]} 17. Bxd4 {[%emt 0:00:05]} Rg8 {[%emt 0:00:05]} 18. Ba7 {[%emt 0:01:46] [#]} Bb7 $1 {[%emt 0:01:30]} 19. Bxb8 {[%emt 0:02:35]} (19. Ke2 Bxf3+) 19... Bxf3 {[%emt 0:00:10]} 20. Rh3 {[%emt 0:00:44]} Bxg2 {[%emt 0:01:51]} 21. Rg3 {[%emt 0:03:15]} Rg6 {[%emt 0:01:31]} 22. Ke2 {[%emt 0:01:06]} Bd5 {[%emt 0:02:27]} 23. f3 {[%emt 0:03:07]} Bg7 {[%emt 0:04:33]} 24. c3 {[%emt 0:00:38]} e5 {[%emt 0:02:19]} 25. Kf2 {[%emt 0:01:40]} Kf7 {[%emt 0:05:19]} 26. Re1 {[%emt 0:04:22]} Ke6 {[%emt 0:02:30]} 27. Reg1 {[%emt 0:01:05]} Kf7 {[%emt 0:02:20]} 28. Re1 $1 {[%emt 0:01:42]} ({Much weaker is} 28. f4 Rxg3 29. Kxg3 (29. Rxg3 e4 $11) 29... exf4+ (29... e4 30. Be5 $16) 30. Bxf4 Be4 $15) 28... Ke6 {[%emt 0:04:29]} 29. Reg1 $1 {[%emt 0:00:06]} Rxg3 $1 {[%emt 0:00:18]} 30. Rxg3 {[%emt 0:00:49][%mdl 4096] Endgame. KRB-KB} Bf6 {[%emt 0:00:11]} 31. Rg8 {[%emt 0:06:38]} Kf7 {[%emt 0:04:19]} 32. Rc8 {[%emt 0:00:28]} Bc6 {[%emt 0:00:25]} 33. f4 {[%emt 0:01:51]} exf4 {[%emt 0:10:24]} 34. Bxf4 {[%emt 0:00:06]} h5 {[%emt 0:00:21]} 35. Kg3 {[%emt 0:03:44]} h4+ {[%emt 0:02:12]} 36. Kh3 {[%emt 0:00:05]} h5 {[%emt 0:06:02]} ({Better is} 36... Kg7 $17) 37. b3 {[%emt 0:01:07]} (37. Rb8 $11) 37... Bxc3 {[%emt 0:03:08]} 38. Kxh4 {[%emt 0:00:14]} Bf6+ {[%emt 0:00:21]} (38... Ke6 $15 39. Kxh5 Bb2) 39. Kxh5 $11 {[%emt 0:02:30]} Be7 {[%emt 0:03:12]} 40. Bc1 {[%emt 0:01:56]} (40. b4 $11) 40... a5 $15 {[%emt 0:03:37]} 41. Rh8 {[%emt 0:01:00]} Bf3+ {[%emt 0:06:42]} 42. Kh6 {[%emt 0:00:04]} Bf6 {[%emt 0:00:24] Black is more active.} (42... a4 $15 43. bxa4 bxa4) 43. Rb8 {[%emt 0:01:04]} Bc6 {[%emt 0:00:16] Strongly threatening ...Be5.} 44. Bd2 $2 {[%emt 0:00:16] This costs White the game.} (44. a4 $11 {and White has nothing to worry.}) 44... Be5 $19 {[%emt 0:00:33]} 45. Rc8 {[%emt 0:00:53][%cal Oh6g5]} f4 {[%emt 0:00:27]} 46. Bxa5 {[%emt 0:01:26]} Bd4 $1 {[%emt 0:01:56] A strong pair of Bishops.} 47. Bb4 {[%emt 0:00:35]} f3 {[%emt 0:00:05][%mdl 1024] Black has strong compensation.} 48. Rf8+ {[%emt 0:00:03]} Ke6 {[%emt 0:00:04] ...f2 is the strong threat.} 49. Be1 {[%emt 0:01:26] [#]} Bc5 $1 {[%emt 0:00:16][%csl LRa3,LRf8]} 50. Re8+ {[%emt 0:00:09]} (50. Rf4 $17) 50... Kd5 {[%emt 0:00:09][%cal Of3f2]} 51. Bg3 {[%emt 0:00:29]} Bxa3 {[%emt 0:01:03]} 52. Kg5 $2 {[%emt 0:00:55]} (52. Bf2) 52... Kd4 {[%emt 0:00:13] Hoping for ...Kc3.} 53. Bf2+ {[%emt 0:00:52]} (53. Be1 $142 Kd3 54. b4) 53... Kc3 {[%emt 0:00:17]} 54. Re3+ {[%emt 0:00:26]} Kc2 {[%emt 0:00:01] ( -> ...Bc1)} 55. Kg4 {[%emt 0:01:29]} Bc5 {[%emt 0:00:49] Black mates.} 56. b4 {[%emt 0:00:38]} Bxe3 {[%emt 0:00:15]} 57. Bxe3 {[%emt 0:00:03]} Kc3 {[%emt 0:00:07]} 58. Bc5 {[%emt 0:00:08]} d5 {[%emt 0:00:18]} 59. Kxf3 {[%emt 0:00:14]} d4+ {[%emt 0:00:02]} 60. Ke2 {[%emt 0:00:11] [#]} d3+ $1 {[%emt 0:00:06] Weighted Error Value: White=0.45/Black=0.13 (very precise) .  Loses game:     	White=1     	---        Mistake:       	White=6     	Black=3      Inaccurate:     	White=4     	Black=3      OK:         	White=18    	Black=21     Best:        	White=4     	Black=7      Strong:       	White=2     	Black=3} 0-1

[Event "SixDays GM March 2024"]
[Site "Budapest"]
[Date "2024.04.02"]
[Round "6.5"]
[White "Orujov, Farid"]
[Black "Kaasen, Tor Fredrik"]
[Result "0-1"]
[ECO "C70"]
[WhiteElo "2266"]
[BlackElo "2449"]
[Annotator "TA"]
[PlyCount "90"]
[EventDate "2024.03.26"]
[EventType "tourn"]
[EventCountry "HUN"]
[SourceTitle "playchess.com"]
[Source "ChessBase"]
[SourceQuality "1"]
[TimeControl "5400+30"]

{[%evp 9,90,19,20,23,23,30,54,43,54,52,52,0,0,0,-3,-31,-6,-9,-10,-80,-72,-72,-35,-37,-33,-70,-72,-100,-99,-151,-138,-198,-187,-184,-159,-158,-160,-162,-149,-164,-166,-196,-181,-181,-178,-199,-204,-206,-192,-242,-239,-281,-260,-264,-335,-302,-283,-435,-431,-465,-458,-656,-652,-667,-606,-601,-595,-707,-679,-802,-772,-983,-975,-1171,-1129,-1550,-1252,-1079,-1003,-993,-868,-794,1446]} 1. e4 {[%emt 0:00:03]} e5 {[%emt 0:02:50]} 2. Nf3 {[%emt 0:00:02]} Nc6 {[%emt 0:00:16]} 3. Bb5 {[%emt 0:00:05][%cal Bf1b5,Bb5a4,Ba4b3][%mdl 32]} a6 {[%emt 0:00:18]} 4. Ba4 {[%emt 0:00:04]} Nge7 {[%emt 0:00:27]} 5. O-O {[%emt 0:00:18]} Ng6 {[%emt 0:02:02]} 6. d4 {[%emt 0:00:29]} exd4 {[%emt 0:00:23]} 7. Nxd4 {[%emt 0:00:51]} Nxd4 {[%emt 0:01:25]} 8. Qxd4 {[%emt 0:00:04] White is slightly better.} b5 {[%emt 0:00:12]} 9. Bb3 {[%emt 0:00:07]} Bb7 {[%emt 0:00:09] Dodges Qd5. Hoping for ...c5.} 10. Qe3 {[%emt 0:04:02]} (10. Rd1 $14) 10... Bd6 $11 {[%emt 0:04:37]} 11. Nc3 {[%emt 0:06:38]} O-O {[%emt 0:05:29]} 12. Qg5 {[%emt 0:08:55]} Be5 {[%emt 0:04:55]} 13. Qxd8 {[%emt 0:01:56]} Raxd8 {[%emt 0:05:49]} 14. Bg5 {[%emt 0:06:25]} (14. Rd1 $11 {remains equal.}) 14... Rde8 $17 {[%emt 0:02:39]} 15. Rad1 {[%emt 0:11:05]} d6 {[%emt 0:05:47]} 16. f3 {[%emt 0:01:21]} c5 {[%emt 0:06:44] And now ...c4 would win.} 17. Bd5 {[%emt 0:09:30]} Bxd5 {[%emt 0:05:16]} 18. Rxd5 {[%emt 0:01:13] [#]} f5 $1 {[%emt 0:04:43]} 19. exf5 {[%emt 0:14:28]} ({Better is} 19. g3) 19... Rxf5 {[%emt 0:00:55]} 20. f4 {[%emt 0:02:37]} (20. Be3 $17) 20... Nxf4 $19 {[%emt 0:06:09]} 21. Bxf4 {[%emt 0:01:52]} Rxf4 {[%emt 0:00:06]} 22. Rxf4 {[%emt 0:00:05]} Bxf4 {[%emt 0:00:08][%mdl 4096] Endgame. KRB-KRN} 23. Kf2 {[%emt 0:01:06]} b4 {[%emt 0:05:39]} (23... Bxh2 24. g3 $11) 24. Ne2 {[%emt 0:02:07]} Be5 {[%emt 0:00:26]} (24... Bxh2 25. g3 $17) 25. c3 {[%emt 0:02:18]} a5 {[%emt 0:02:17]} ({Weaker is} 25... Bxh2 26. g3 $14) 26. Rd2 {[%emt 0:02:21]} bxc3 {[%emt 0:02:18]} ({Inferior is} 26... Bxh2 27. g3 $14) 27. bxc3 {[%emt 0:00:08]} Rb8 {[%emt 0:00:24]} ({Not} 27... Bxh2 28. g3 $14) 28. Ke3 {[%emt 0:03:52]} Kf7 {[%emt 0:03:09]} 29. g3 {[%emt 0:03:27]} (29. h3 {might work better.}) 29... g5 {[%emt 0:01:10]} 30. c4 {[%emt 0:02:29]} Ke6 {[%emt 0:01:02]} 31. Kd3 {[%emt 0:00:23]} Rf8 {[%emt 0:00:55]} 32. Ke3 {[%emt 0:00:33]} Rf1 {[%emt 0:00:44] Against Nc1} 33. Rd3 {[%emt 0:00:23]} (33. Ke4 $142) 33... g4 {[%emt 0:02:11] Black is clearly winning.} 34. Rb3 {[%emt 0:03:31]} h5 {[%emt 0:03:50]} 35. Rd3 {[%emt 0:01:12]} (35. Rb8 $142) 35... Kf5 {[%emt 0:01:53]} 36. Kd2 {[%emt 0:01:06]} Rf2 {[%emt 0:01:18]} 37. Ke1 {[%emt 0:00:38]} Rxh2 {[%emt 0:00:35]} 38. Kf1 {[%emt 0:00:01]} Rh1+ {[%emt 0:00:49]} 39. Kg2 {[%emt 0:00:07]} Rb1 {[%emt 0:00:17] aiming for ...Ke4.} 40. Ra3 {[%emt 0:00:10]} Rb4 {[%emt 0:00:29]} 41. Rxa5 {[%emt 0:00:08]} Rxc4 {[%emt 0:00:07] ...Ke4 is the strong threat.} 42. Ra8 {[%emt 0:00:09]} Rc2 {[%emt 0:00:28]} 43. Kf2 {[%emt 0:00:04] [#]} Bxg3+ $1 {[%emt 0:00:45][%mdl 512]} 44. Kxg3 {[%emt 0:00:07]} Rxe2 {[%emt 0:00:06]} 45. Rf8+ {[%emt 0:00:04]} Ke5 $4 {[%mdl 40960] Never resign too early!   Weighted Error Value: White=0.55/Black=0.06 (flawless) .  Mistake:       	White=7     	---        Inaccurate:     	White=3     	Black=1      OK:         	White=4     	Black=19     Best:        	---       	Black=1      Strong:       	---       	Black=1     . Sensor Board Error (Ke4/e5)?} (45... Kg6 $19 46. Rg8+ Kf7) 0-1

[Event "SixDays GM March 2024"]
[Site "Budapest"]
[Date "2024.04.03"]
[Round "7.1"]
[White "Kaasen, Tor Fredrik"]
[Black "Horvath, Adam"]
[Result "0-1"]
[ECO "B42"]
[WhiteElo "2449"]
[BlackElo "2440"]
[Annotator "RC"]
[PlyCount "90"]
[EventDate "2024.03.26"]
[EventType "tourn"]
[EventCountry "HUN"]
[SourceTitle "playchess.com"]
[Source "ChessBase"]
[SourceQuality "1"]
[TimeControl "5400+30"]

1. e4 {[%emt 0:00:34]} c5 {[%emt 0:01:27]} 2. Nf3 {[%emt 0:00:18]} e6 {[%emt 0:00:14]} 3. d4 {[%emt 0:00:26]} cxd4 {[%emt 0:00:05]} 4. Nxd4 {[%emt 0:00:08]} a6 {[%emt 0:00:14]} 5. Bd3 {[%emt 0:00:46]} Bc5 {[%emt 0:00:07]} 6. Nb3 {[%emt 0:00:26]} Ba7 {[%emt 0:00:07]} 7. Qf3 {[%emt 0:01:02]} d6 {[%emt 0:07:41]} 8. Be3 {[%emt 0:01:24]} Nf6 {[%emt 0:07:48]} 9. Nc3 {[%emt 0:01:01]} Nc6 {[%emt 0:04:28]} 10. Bxa7 {[%emt 0:02:12]} Rxa7 {[%emt 0:00:06]} 11. O-O-O {[%emt 0:01:01]} b5 {[%emt 0:25:36]} 12. g4 {[%emt 0:14:29]} b4 {[%emt 0:14:43]} 13. Ne2 {[%emt 0:06:19]} O-O {[%emt 0:10:20]} 14. g5 {[%emt 0:03:50]} Nd7 {[%emt 0:00:03]} 15. Qg3 {[%emt 0:02:11]} e5 {[%emt 0:03:00]} 16. Kb1 {[%emt 0:11:02]} Nb6 {[%emt 0:05:47]} 17. h4 {[%emt 0:03:49]} a5 {[%emt 0:03:09]} 18. h5 {[%emt 0:04:34]} a4 {[%emt 0:00:15]} 19. Nbc1 {[%emt 0:03:28]} b3 {[%emt 0:00:38]} 20. cxb3 {[%emt 0:02:15]} axb3 {[%emt 0:00:23]} 21. a3 {[%emt 0:01:24]} Na4 {[%emt 0:09:36]} 22. Rd2 {[%emt 0:17:20]} Be6 {[%emt 0:02:19]} 23. g6 {[%emt 0:07:05]} fxg6 {[%emt 0:00:04]} 24. hxg6 {[%emt 0:01:08]} h6 {[%emt 0:00:05]} 25. Bb5 {[%emt 0:04:10]} Qa5 {[%emt 0:03:10]} 26. Rxd6 {[%emt 0:01:16]} Qxb5 {[%emt 0:00:59]} 27. Rxe6 {[%emt 0:00:27]} Qc4 {[%emt 0:01:01]} 28. Qxb3 {[%emt 0:01:23]} Qxe4+ {[%emt 0:00:03]} 29. Qc2 {[%emt 0:04:26]} Nc3+ {[%emt 0:00:50]} 30. Nxc3 {[%emt 0:00:30]} Qxc2+ {[%emt 0:00:07]} 31. Kxc2 {[%emt 0:00:18]} Nd4+ {[%emt 0:00:04]} 32. Kb1 {[%emt 0:00:37]} Nxe6 {[%emt 0:00:03]} 33. Nd3 {[%emt 0:00:32]} Rf6 {[%emt 0:01:53]} 34. Nxe5 {[%emt 0:00:36]} Nf8 {[%emt 0:00:10]} 35. Rg1 {[%emt 0:01:54]} Rxf2 {[%emt 0:00:14]} 36. Nd5 {[%emt 0:00:54]} Rb7 {[%emt 0:00:34]} 37. b4 {[%emt 0:00:33]} Nd7 {[%emt 0:00:45]} 38. Nc6 {[%emt 0:00:31]} Nf6 {[%emt 0:00:41]} 39. Nde7+ {[%emt 0:01:30]} Kf8 {[%emt 0:00:10]} 40. Re1 {[%emt 0:00:05]} Rd7 {[%emt 0:00:15]} 41. b5 {[%emt 0:00:44]} Ne4 {[%emt 0:00:32]} 42. Kc1 {[%emt 0:01:32]} Nc3 {[%emt 0:00:03]} 43. b6 {[%emt 0:00:44]} Rdd2 {[%emt 0:00:22]} 44. Nd4 {[%emt 0:01:03]} Ra2 {[%emt 0:01:20]} 45. Ne2 {[%emt 0:00:31]} Nxe2+ {[%emt 0:00:09]} 0-1

[Event "SixDays GM March 2024"]
[Site "Budapest"]
[Date "2024.04.03"]
[Round "7.2"]
[White "Uskov, Artem"]
[Black "Orujov, Farid"]
[Result "1-0"]
[ECO "C42"]
[WhiteElo "2392"]
[BlackElo "2266"]
[Annotator "RC"]
[PlyCount "75"]
[EventDate "2024.03.26"]
[EventType "tourn"]
[EventCountry "HUN"]
[SourceTitle "playchess.com"]
[Source "ChessBase"]
[SourceQuality "1"]
[TimeControl "5400+30"]

1. e4 {[%emt 0:07:00]} e5 {[%emt 0:00:05]} 2. Nf3 {[%emt 0:00:07]} Nf6 {[%emt 0:00:04]} 3. Nxe5 {[%emt 0:00:07]} d6 {[%emt 0:00:03]} 4. Nf3 {[%emt 0:00:19]} Nxe4 {[%emt 0:00:05]} 5. d4 {[%emt 0:00:05]} d5 {[%emt 0:00:05]} 6. Bd3 {[%emt 0:00:08]} Nc6 {[%emt 0:00:09]} 7. O-O {[%emt 0:07:20]} Be7 {[%emt 0:00:05]} 8. c4 {[%emt 0:15:23]} Nb4 {[%emt 0:00:06]} 9. Be2 {[%emt 0:02:33]} Bf5 {[%emt 0:02:51]} 10. a3 {[%emt 0:05:14]} Nc6 {[%emt 0:00:06]} 11. Nc3 {[%emt 0:02:29]} Nxc3 {[%emt 0:00:06]} 12. bxc3 {[%emt 0:00:03]} O-O {[%emt 0:00:04]} 13. cxd5 {[%emt 0:03:54]} Qxd5 {[%emt 0:00:04]} 14. c4 {[%emt 0:00:07]} Qe4 {[%emt 0:00:02]} 15. Be3 {[%emt 0:08:10]} Bf6 {[%emt 0:01:55]} 16. Ra2 {[%emt 0:00:13]} Rad8 {[%emt 0:13:53]} 17. Rd2 {[%emt 0:01:37]} Qe7 {[%emt 0:01:35]} 18. Qb3 {[%emt 0:00:12]} b6 {[%emt 0:02:15]} 19. Rfd1 {[%emt 0:05:17]} Be4 {[%emt 0:02:50]} 20. h3 {[%emt 0:01:03]} Bxf3 {[%emt 0:01:47]} 21. Bxf3 {[%emt 0:00:05]} Nxd4 {[%emt 0:00:23]} 22. Rxd4 {[%emt 0:00:05]} Bxd4 {[%emt 0:01:58]} 23. Rxd4 {[%emt 0:01:26]} Rxd4 {[%emt 0:01:48]} 24. Bxd4 {[%emt 0:00:02]} Rd8 {[%emt 0:00:02]} 25. Be3 {[%emt 0:01:16]} Qd6 {[%emt 0:00:19]} 26. g3 {[%emt 0:02:46]} h6 {[%emt 0:01:54]} 27. Kg2 {[%emt 0:00:09]} Qd3 {[%emt 0:00:34]} 28. Qa4 {[%emt 0:00:13]} a5 {[%emt 0:02:35]} 29. c5 {[%emt 0:04:25]} bxc5 {[%emt 0:01:48]} 30. Bxc5 {[%emt 0:01:17]} Qc3 {[%emt 0:00:26]} 31. Qc6 {[%emt 0:00:38]} Qe5 {[%emt 0:01:43]} 32. Qb5 {[%emt 0:02:47]} Qc3 {[%emt 0:00:36]} 33. Be7 {[%emt 0:02:49]} Rc8 {[%emt 0:00:26]} 34. a4 {[%emt 0:00:42]} c6 {[%emt 0:01:54]} 35. Qb7 {[%emt 0:00:35]} Re8 {[%emt 0:00:14]} 36. Bxc6 {[%emt 0:00:22]} Rxe7 {[%emt 0:00:25]} 37. Qc8+ {[%emt 0:00:02]} Kh7 {[%emt 0:00:06]} 38. Be4+ {[%emt 0:00:03]} 1-0